bitfinex-derivatives/quotes_BNBF0:USTF0_20250303
["timestamp","ask_amount","ask_price","bid_price","bid_amount"]
[1740994174542,3.33671621,599.59,598.63,0.26694471]
[1740994174747,3.33671621,599.59,598.62,0.26694471]
[1740994174944,3.33671621,599.59,598.63,0.26676535]
[1740994175148,3.33671621,599.59,598.62,0.26676535]
[1740994175444,3.33671621,599.59,598.8,1.24204793]
[1740994175644,3.33671621,599.59,598.81,0.26676535]
[1740994175849,3.33671621,599.59,598.82,0.26676535]
[1740994176150,3.33671621,599.59,598.83,0.26676535]
[1740994176346,3.33671621,599.59,598.8,1.24204793]
[1740994176544,3.33671621,599.59,598.81,0.26670921]
[1740994176747,3.33671621,599.59,598.82,0.26670921]
[1740994176945,3.33671621,599.59,598.83,0.26670921]
[1740994177145,3.33671621,599.59,598.84,0.26670921]
[1740994177351,3.33671621,599.59,598.85,0.26670921]
[1740994177552,3.33671621,599.59,598.86,0.26670921]
[1740994177744,3.33671621,599.59,598.85,1.24204793]
[1740994177948,3.33671621,599.59,598.86,0.26670921]
[1740994179752,3.33671621,599.59,598.87,0.26671531]
[1740994179952,3.33671621,599.59,598.86,0.26671531]
[1740994180252,3.33671621,599.59,598.87,0.26671531]
[1740994180453,3.33671621,599.59,598.28,0.26671531]
[1740994180649,3.33671621,599.59,598.29,0.26671531]
[1740994180849,3.33671621,599.59,598.28,0.26671531]
[1740994181055,3.33671621,599.59,598.29,0.26671531]
[1740994181253,3.33671621,599.59,598.28,0.26671531]
[1740994181449,3.33671621,599.59,598.29,0.26671531]
[1740994181652,3.33671621,599.59,598.23,0.26671531]
[1740994181854,3.33671621,599.59,598.24,0.26671531]
[1740994182055,3.33671621,599.59,598.25,0.26671531]
[1740994182251,3.33671621,599.59,598.26,0.26671531]
[1740994182451,3.33671621,599.59,598.27,0.26671531]
[1740994182650,3.33671621,599.59,598.28,0.26671531]
[1740994182956,3.33671621,599.59,598.29,0.26671531]
[1740994183155,3.33671621,599.59,598.3,0.26671531]
[1740994183354,3.33671621,599.59,598.31,0.26671531]
[1740994183555,3.33671621,599.59,598.32,0.26671531]
[1740994183748,3.33671621,599.59,598.33,0.26671531]
[1740994183951,3.33671621,599.59,598.34,0.26671531]
[1740994184148,3.33671621,599.59,598.22,1.24204793]
[1740994184149,3.33671621,599.59,598.56,1.24204793]
[1740994184554,3.33671621,599.59,598.57,0.26674737]
[1740994184751,3.33671621,599.59,598.58,0.26674737]
[1740994184951,3.33671621,599.59,598.59,0.26674737]
[1740994185150,3.33671621,599.59,598.6,0.26674737]
[1740994185354,3.33671621,599.59,598.61,0.26674737]
[1740994185555,3.33671621,599.59,598.73,1.24204793]
[1740994185752,3.33671621,599.59,598.74,0.26674737]
[1740994185948,3.33671621,599.59,598.75,0.26674737]
[1740994186157,3.33671621,599.59,598.76,0.26674737]
[1740994186353,3.33671621,599.59,598.77,0.26674737]
[1740994186556,3.33671621,599.59,598.78,0.26674737]
[1740994186752,3.33671621,599.59,598.74,0.26674737]
[1740994186956,3.33671621,599.59,598.75,0.26674737]
[1740994187257,3.33671621,599.59,598.76,0.26674737]
[1740994187456,3.33671621,599.59,598.73,1.24204793]
[1740994187653,3.33671621,599.59,598.74,0.26674395]
[1740994187857,3.33671621,599.59,598.75,0.26674395]
[1740994188157,3.33671621,599.59,598.76,0.26674395]
[1740994188350,3.33671621,599.59,598.73,0.26674395]
[1740994188556,3.33671621,599.59,598.74,0.26674395]
[1740994188756,3.33671621,599.59,598.75,0.26674395]
[1740994189057,3.33671621,599.59,598.76,0.26674395]
[1740994189357,3.33671621,599.59,598.77,0.26674395]
[1740994189652,3.33671621,599.59,598.78,0.26674395]
[1740994189853,3.33671621,599.59,598.79,0.26674395]
[1740994190058,3.33671621,599.59,598.7,0.26674395]
[1740994190260,3.33671621,599.59,598.71,0.26674395]
[1740994190454,3.33671621,599.59,598.7,0.26674395]
[1740994190659,3.33671621,599.59,598.71,0.26674395]
[1740994190859,3.33671621,599.59,598.7,0.26674395]
[1740994191160,3.33671621,599.59,598.69,1.24204793]
[1740994191161,3.33671621,599.59,598.71,0.26674395]
[1740994191460,3.33671621,599.59,598.72,0.26674395]
[1740994191659,3.33671621,599.59,598.62,0.26674395]
[1740994191861,3.33671621,599.59,598.63,0.26674395]
[1740994192062,3.33671621,599.59,598.64,0.26674395]
[1740994192267,3.33671621,599.59,598.61,1.24204793]
[1740994192456,3.33671621,599.59,598.62,0.26673911]
[1740994192658,3.33671621,599.59,598.63,0.26673911]
[1740994192861,3.33671621,599.59,598.64,0.26673911]
[1740994193062,3.33671621,599.59,598.65,0.26673911]
[1740994193261,3.33671621,599.59,598.66,0.26673911]
[1740994193659,3.33671621,599.59,598.67,0.26673911]
[1740994193856,3.33671621,599.59,598.68,0.26672732]
[1740994194059,3.33671621,599.59,598.69,0.26672732]
[1740994194259,3.33671621,599.59,598.7,0.26672732]
[1740994194462,3.33671621,599.59,598.56,1.24204793]
[1740994194463,3.33671621,599.59,598.71,0.26672732]
[1740994194662,3.33671621,599.59,598.72,0.26672732]
[1740994194965,3.33671621,599.59,598.73,0.26672732]
[1740994195159,3.33671621,599.59,598.01,2.53584787]
[1740994195160,3.33671621,599.59,598.74,0.26672732]
[1740994195360,3.33671621,599.59,598.75,0.26672732]
[1740994195561,3.33671621,599.59,598.76,0.26672732]
[1740994195762,3.33671621,599.59,598.77,0.26672732]
[1740994195962,3.33671621,599.59,598.78,0.26672732]
[1740994196164,3.33671621,599.59,598.79,0.26672732]
[1740994196364,3.33671621,599.59,598.8,0.26672732]
[1740994196561,3.33671621,599.59,598.81,0.26672732]
[1740994196760,3.33671621,599.59,598.83,1.24204793]
[1740994197164,3.33671621,599.59,598.84,0.26667203]
[1740994197362,3.33671621,599.59,598.85,0.26667203]
[1740994197564,3.33671621,599.59,598.86,0.26667203]
[1740994197761,3.33671621,599.59,598.87,0.26667203]
[1740994197960,3.33671621,599.59,598.88,0.26667203]
[1740994198165,3.33671621,599.59,598.83,1.24204793]
[1740994198166,3.33671621,599.59,598.89,0.26667203]
[1740994198469,3.33671621,599.59,598.9,0.26667203]
[1740994198660,3.33671621,599.59,598.91,0.26667203]
[1740994198860,3.33671621,599.59,598.92,0.26667203]
[1740994199065,3.33671621,599.59,598.93,0.26667203]
[1740994199265,3.33671621,599.59,598.94,0.26667203]
[1740994199463,3.33671621,599.59,598.95,0.26667203]
[1740994199661,3.33671621,599.59,598.96,0.26667203]
[1740994199867,3.33671621,599.59,598.97,0.26667203]
[1740994200066,3.33671621,599.59,598.98,0.26667203]
[1740994200266,3.33671621,599.59,598.85,0.26667203]
[1740994200462,3.33671621,599.59,598.86,0.26667203]
[1740994200667,3.33671621,599.59,598.87,1.50871996]
[1740994200859,3.33671621,599.59,598.88,0.26667203]
[1740994201363,3.33671621,599.59,598.89,0.26667203]
[1740994201669,3.33671621,599.59,598.9,0.26667203]
[1740994201868,3.33671621,599.59,598.91,0.26667203]
[1740994202068,3.33671621,599.59,598.92,0.26667203]
[1740994202269,3.33671621,599.59,598.93,1.50871996]
[1740994202568,3.33671621,599.59,598.94,0.26667203]
[1740994202765,3.33671621,599.59,598.95,0.26667203]
[1740994202970,3.33671621,599.59,598.96,0.26667203]
[1740994203363,3.33671621,599.59,598.97,0.26667203]
[1740994203566,3.33671621,599.59,598.98,0.26667203]
[1740994203766,3.33671621,599.59,598.99,0.26667203]
[1740994203963,3.33671621,599.59,599.0,0.26667203]
[1740994204168,3.33671621,599.59,599.01,0.26667203]
[1740994204372,3.33671621,599.59,599.02,0.26667203]
[1740994204570,3.33671621,599.59,599.03,0.26667203]
[1740994204767,3.33671621,599.59,599.04,0.26667203]
[1740994204970,3.33671621,599.59,599.05,0.26667203]
[1740994205165,3.33671621,599.59,599.06,0.26667203]
[1740994205364,3.33671621,599.59,598.96,0.26667203]
[1740994205570,3.33671621,599.59,598.97,0.26667203]
[1740994205770,3.33671621,599.59,598.98,0.26667203]
[1740994205965,3.33671621,599.59,598.99,0.26667203]
[1740994206271,3.33671621,599.59,599.0,0.26667203]
[1740994206473,3.33671621,599.59,599.05,1.23885311]
[1740994206772,3.33671621,599.59,599.06,0.26667203]
[1740994208373,3.33671621,599.59,599.01,0.26667203]
[1740994208570,3.33671621,599.59,599.02,0.26667203]
[1740994208770,3.33671621,599.59,599.03,0.26667203]
[1740994208971,3.33671621,599.59,599.04,0.26667203]
[1740994209275,3.33671621,599.59,599.05,0.26667203]
[1740994209470,3.33671621,599.59,599.01,0.26667203]
[1740994210376,3.33671621,599.59,599.02,0.26667203]
[1740994210577,3.33671621,599.59,599.01,0.26667203]
[1740994210775,3.33671621,599.59,598.52,2.5293251]
[1740994210776,3.33671621,599.59,599.02,0.26667203]
[1740994210973,3.33671621,599.59,599.03,0.26667203]
[1740994211182,3.33671621,599.59,599.0,0.26667203]
[1740994211378,3.33671621,599.59,599.01,0.26667203]
[1740994211579,3.33671621,599.59,599.02,0.26667203]
[1740994211780,3.33671621,599.59,599.03,0.26667203]
[1740994211978,3.33671621,599.59,599.04,0.26667203]
[1740994212180,3.33671621,599.59,599.0,0.26667203]
[1740994212379,3.33671621,599.59,599.05,0.26667203]
[1740994212680,3.33671621,599.59,599.06,0.26664373]
[1740994212876,3.33671621,599.59,599.07,0.26664373]
[1740994213082,3.33671621,599.59,599.08,0.26664373]
[1740994213280,3.33671621,599.59,598.72,0.26664373]
[1740994213475,3.33671621,599.59,598.73,0.26664373]
[1740994213681,3.33671621,599.59,598.74,0.60067853]
[1740994213882,3.33671621,599.59,598.75,0.26664373]
[1740994214281,3.33671621,599.59,598.76,0.26664373]
[1740994214581,3.33671621,599.59,598.77,0.26664373]
[1740994214782,3.33671621,599.59,598.78,0.26664373]
[1740994214986,3.33671621,599.59,598.79,0.26664373]
[1740994215485,3.33671621,599.59,599.29,1.24394209]
[1740994215681,3.33671621,599.59,599.3,0.26669783]
[1740994218319,3.33671621,599.59,599.31,0.26669783]
[1740994218511,3.33671621,599.59,598.98,0.26669783]
[1740994220702,3.33671621,599.59,598.75,0.26669783]
[1740994220908,3.33671621,599.59,598.76,0.26669783]
[1740994221095,3.33671621,599.59,598.77,0.26669783]
[1740994221290,3.33671621,599.59,598.78,0.26669783]
[1740994221490,3.33671621,599.59,598.79,0.26669783]
[1740994221692,3.33671621,599.59,598.8,0.26669783]
[1740994222094,3.33671621,599.59,598.81,0.26684265]
[1740994222290,3.33671621,599.59,598.82,0.26684265]
[1740994222592,3.33671621,599.59,598.83,0.26684265]
[1740994222794,3.33671621,599.59,598.87,1.24301892]
[1740994223098,3.33671621,599.59,598.88,0.26684265]
[1740994223288,3.33671621,599.59,598.89,0.26684265]
[1740994223489,3.33671621,599.59,598.9,0.26684265]
[1740994223693,3.33671621,599.59,598.88,0.26684265]
[1740994223988,3.33671621,599.59,598.89,0.26684265]
[1740994224197,3.33671621,599.59,598.9,0.26677832]
[1740994224494,3.33671621,599.59,598.91,0.26677832]
[1740994224695,3.33671621,599.59,599.0,1.24301892]
[1740994224895,3.33671621,599.59,599.01,0.26677832]
[1740994226390,3.33671621,599.59,599.05,1.24301892]
[1740994226595,3.33671621,599.59,599.06,0.26677832]
[1740994227398,3.33671621,599.59,599.05,1.24301892]
[1740994227692,3.33671621,599.59,599.06,0.26686842]
[1740994229392,3.33671621,599.59,598.9,1.24301892]
[1740994229692,3.33671621,599.59,598.91,0.26699645]
[1740994230797,3.33671621,599.59,598.92,0.26699183]
[1740994230993,3.33671621,599.59,598.91,0.26699183]
[1740994231299,3.33671621,599.59,598.92,0.26699183]
[1740994231498,3.33671621,599.59,598.75,0.26699183]
[1740994231694,3.33671621,599.59,598.76,0.26699183]
[1740994232093,3.33671621,599.59,598.75,0.26699183]
[1740994234699,1.66873492,599.58,598.75,0.26699183]
[1740994235098,3.33671621,599.59,598.75,0.26699183]
[1740994235300,7.67551888,599.59,598.75,0.26699183]
[1740994235496,4.33891185,599.58,598.14,1.24301892]
[1740994235802,1.66881225,599.58,598.75,0.26707672]
[1740994236501,3.33671621,599.59,598.75,0.26707672]
[1740994236898,3.33671621,599.59,598.15,0.26707672]
[1740994237093,3.33671621,599.59,598.17,0.33435311]
[1740994237299,3.33671621,599.59,598.18,0.26707672]
[1740994237498,1.74257029,599.58,598.2,0.33433634]
[1740994237697,3.33671621,599.59,598.21,0.26707672]
[1740994237897,3.33671621,599.59,598.22,0.26707672]
[1740994238102,3.33671621,599.59,598.23,0.26707672]
[1740994238297,3.33671621,599.59,598.24,0.26707672]
[1740994238500,3.33671621,599.59,598.2,0.33433634]
[1740994238501,3.33671621,599.59,598.25,0.26694358]
[1740994238697,3.33671621,599.59,598.26,0.26694358]
[1740994238896,3.33671621,599.59,598.28,0.33429163]
[1740994239099,3.33671621,599.59,598.29,0.26694358]
[1740994239297,3.33671621,599.59,598.3,0.26694358]
[1740994239601,3.33671621,599.59,598.28,0.33429163]
[1740994239602,3.33671621,599.59,598.32,0.33426928]
[1740994239803,3.33671621,599.59,598.33,0.26694358]
[1740994240004,3.33671621,599.59,598.34,0.26694358]
[1740994240201,3.33671621,599.59,598.33,0.26694358]
[1740994240397,3.33671621,599.59,598.35,0.33425252]
[1740994240600,3.33671621,599.59,598.36,0.26694358]
[1740994241603,3.33671621,599.59,598.37,0.33424135]
[1740994241805,3.33671621,599.59,598.38,0.26694358]
[1740994242098,3.33671621,599.59,598.37,0.33424135]
[1740994242300,3.33671621,599.59,598.38,0.26696144]
[1740994242496,3.33671621,599.59,598.39,0.26696144]
[1740994242705,3.33671621,599.59,598.4,0.26696144]
[1740994243002,3.33671621,599.59,598.41,0.26696144]
[1740994243204,3.33671621,599.59,598.42,0.26696144]
[1740994243404,3.33671621,599.59,598.37,0.33424135]
[1740994243405,3.33671621,599.59,598.38,0.26696144]
[1740994243605,3.33671621,599.59,598.39,0.26696144]
[1740994243806,3.33671621,599.59,598.4,0.26696144]
[1740994244002,3.33671621,599.59,598.41,0.26696144]
[1740994244206,3.33671621,599.59,598.42,0.60117486]
[1740994244406,3.33671621,599.59,598.43,0.60116928]
[1740994244601,3.33671621,599.59,598.44,0.60116369]
[1740994244800,3.33671621,599.59,598.45,0.26696144]
[1740994244999,3.33671621,599.59,598.46,0.60115253]
[1740994245206,3.33671621,599.59,598.47,0.60114694]
[1740994245503,1.66838801,599.58,598.48,0.26699967]
[1740994245703,1.66838801,599.57,598.49,0.26699967]
[1740994245900,1.66838801,599.57,598.47,0.3341855]
[1740994245901,1.66838801,599.56,598.5,0.26699967]
[1740994246106,1.66838801,599.58,598.51,0.26699967]
[1740994246305,1.66838801,599.57,598.52,0.26699967]
[1740994246502,3.33671621,599.59,598.48,0.26699967]
[1740994246503,1.74243942,599.55,598.48,0.26699967]
[1740994246707,3.41082743,599.55,598.49,0.26699967]
[1740994247008,1.66850422,599.54,598.47,0.3341855]
[1740994247203,1.66850422,599.53,598.48,0.26705412]
[1740994247408,1.66850422,599.52,598.48,0.26705412]
[1740994247609,1.66850422,599.51,598.48,0.26705412]
[1740994247806,1.66850422,599.5,598.48,0.26705412]
[1740994248007,1.66850422,599.49,598.48,0.60123404]
[1740994248207,1.66850422,599.48,598.49,0.26705412]
[1740994248407,1.66850422,599.47,598.49,0.26705412]
[1740994248607,1.66850422,599.46,598.49,0.26705412]
[1740994248902,1.66850422,599.45,598.49,0.26705412]
[1740994249110,1.66850422,599.44,598.49,0.26705412]
[1740994249311,1.66886372,599.43,598.49,0.26705412]
[1740994249610,1.66886372,599.42,598.49,0.26705412]
[1740994249805,1.66886372,599.41,598.49,0.26705412]
[1740994250004,1.66886372,599.4,598.49,0.26705412]
[1740994250209,1.66886372,599.39,598.49,0.26705412]
[1740994250409,1.66886372,599.38,598.49,0.26705412]
[1740994250611,1.66886372,599.37,598.49,0.26705412]
[1740994250810,1.66886372,599.36,598.49,0.26705412]
[1740994251011,1.74271573,599.44,598.49,0.26705412]
[1740994251012,1.66886372,599.35,598.49,0.26705412]
[1740994251209,1.66886372,599.34,598.49,0.26705412]
[1740994251508,1.66886372,599.33,598.49,0.26705412]
[1740994251701,1.66886372,599.32,598.49,0.26705412]
[1740994251907,1.66886372,599.31,598.49,0.26705412]
[1740994252108,1.66886372,599.3,598.49,0.26705412]
[1740994252305,1.66886372,599.29,598.49,0.26705412]
[1740994252506,1.66886372,599.28,598.49,0.26705412]
[1740994252709,1.74299214,599.3,598.49,0.26705412]
[1740994252906,1.66924673,599.29,598.49,0.26705412]
[1740994253110,1.66924673,599.28,598.49,0.26705412]
[1740994253305,1.66924673,599.27,598.49,0.26705412]
[1740994253510,1.74299214,599.3,598.49,0.26705412]
[1740994253805,1.66926464,599.29,598.49,0.26705412]
[1740994254112,1.66926464,599.28,598.49,0.26705412]
[1740994254412,1.66926464,599.27,598.49,0.26705412]
[1740994254615,1.66926464,599.26,598.49,0.26705412]
[1740994254915,1.66926605,599.25,598.49,0.26705412]
[1740994255112,3.33849347,599.47,598.49,0.26705412]
[1740994255307,4.34002536,599.46,598.49,0.26705412]
[1740994255507,1.74303579,599.26,598.49,0.26705412]
[1740994255708,3.33832198,599.44,598.49,0.26705412]
[1740994255913,4.33990243,599.43,598.49,0.26705412]
[1740994256113,5.00756682,599.42,598.49,0.26705412]
[1740994256314,5.00756682,599.41,598.49,0.26705412]
[1740994256512,5.00756682,599.4,598.49,0.26705412]
[1740994256711,4.33990243,599.39,598.49,0.26705412]
[1740994257009,4.33990243,599.38,598.48,0.33417992]
[1740994257213,4.33990243,599.37,598.49,0.26713998]
[1740994257412,4.33990243,599.36,598.49,0.26713998]
[1740994257715,4.33997053,599.35,598.49,0.26713998]
[1740994258013,4.33997053,599.34,598.49,0.26713998]
[1740994258213,1.74288302,599.45,598.49,0.26713998]
[1740994258214,4.33997053,599.33,598.49,0.26713998]
[1740994258515,1.66921943,599.32,598.49,0.26713998]
[1740994258711,1.66921943,599.31,598.49,0.26713998]
[1740994259013,1.66921943,599.3,598.49,0.26713998]
[1740994259215,1.66921943,599.29,598.49,0.26713998]
[1740994259415,2.6706057,599.41,598.49,0.26713998]
[1740994259608,4.33971177,599.4,598.49,0.26713998]
[1740994259813,4.33971177,599.39,598.49,0.26713998]
[1740994260211,4.33986194,599.38,598.48,0.33417992]
[1740994260418,4.33986194,599.37,598.49,0.26714963]
[1740994260609,4.33986194,599.36,598.48,0.33417992]
[1740994260812,4.34006682,599.35,598.49,0.26714998]
[1740994261010,4.34006682,599.34,598.49,0.26714998]
[1740994261209,4.34006682,599.33,598.49,0.26714998]
[1740994261410,4.34006682,599.32,598.49,0.26714998]
[1740994261610,4.34006682,599.31,598.49,0.26714998]
[1740994261816,5.00787775,599.3,598.49,0.26714998]
[1740994262019,4.34006682,599.29,598.48,0.33417992]
[1740994262319,5.00791416,599.28,598.49,0.26723123]
[1740994262517,5.00791416,599.27,598.49,0.26723123]
[1740994262716,5.00791416,599.26,598.49,0.26723123]
[1740994262921,5.00791416,599.25,598.48,0.33417992]
[1740994263115,5.00791416,599.24,598.49,0.26725459]
[1740994263319,4.34006682,599.23,598.49,0.26725459]
[1740994263514,1.66917767,599.22,598.49,0.26725459]
[1740994263719,1.66917767,599.21,598.49,0.26725459]
[1740994264020,1.66917767,599.2,597.76,1.24301892]
[1740994264211,1.66917767,599.19,597.78,0.33457124]
[1740994264412,1.66917767,599.18,597.79,0.26721917]
[1740994264719,1.66917767,599.17,597.81,0.33455445]
[1740994265018,5.00869644,599.37,597.82,0.26721917]
[1740994265217,5.00869644,599.36,597.83,0.26721917]
[1740994265412,5.00869644,599.35,597.85,0.33453207]
[1740994265611,5.00869644,599.34,597.86,0.26721917]
[1740994265816,5.00869644,599.33,597.86,0.26721917]
[1740994266012,5.00869644,599.32,597.87,0.26721917]
[1740994266213,12.07187231,601.51,597.85,0.33453207]
[1740994266214,5.00869644,599.31,597.88,0.26721917]
[1740994266520,5.34241911,599.3,597.89,0.60172886]
[1740994266721,1.62248335,599.28,597.9,0.26721917]
[1740994266922,1.62248335,599.18,597.9,0.26721917]
[1740994267114,5.00869644,599.17,597.9,0.26721917]
[1740994267318,5.00996101,599.16,597.9,0.26721917]
[1740994267515,1.62320629,599.14,597.9,0.26721917]
[1740994267821,6.6331673,599.13,597.9,0.26721917]
[1740994268021,5.00996101,599.12,597.9,0.26721917]
[1740994268323,5.00996101,599.11,597.9,0.26721917]
[1740994268517,5.00996101,599.1,597.9,0.26721917]
[1740994268717,5.01019115,599.09,597.9,0.26721917]
[1740994268916,5.01019115,599.08,597.9,0.26721917]
[1740994269121,5.01019115,599.07,597.9,0.26721917]
[1740994269324,5.01019115,599.06,597.9,0.26721917]
[1740994269524,5.01019115,599.05,597.9,0.26721917]
[1740994269723,5.01019115,599.04,597.9,0.26721917]
[1740994269921,5.01019115,599.03,597.9,0.26721917]
[1740994270120,5.01019115,599.02,597.9,0.26721917]
[1740994270419,5.01019115,599.01,597.91,0.3344985]
[1740994270625,5.01019115,599.0,597.92,0.26721917]
[1740994270820,5.01019115,598.99,597.93,0.33448731]
[1740994271124,5.01019115,598.98,597.94,0.26721917]
[1740994271425,4.34208237,598.97,597.95,0.33447612]
[1740994271723,4.34208237,598.96,597.96,0.26730187]
[1740994271923,1.67003168,598.95,597.97,0.33446493]
[1740994272119,1.67003168,598.94,597.98,0.26730187]
[1740994272318,1.74412048,599.02,597.99,0.33445375]
[1740994272521,0.33372267,599.3,598.0,0.26730187]
[1740994272917,1.74378547,599.13,598.0,0.26730187]
[1740994273120,0.33372267,599.3,598.0,0.26730187]
[1740994273426,6.75240693,599.29,598.0,0.26730187]
[1740994273625,1.62336069,599.24,598.0,0.26730187]
[1740994273925,6.96619515,599.23,598.0,0.26730187]
[1740994274127,1.62336069,599.21,598.0,0.26730187]
[1740994274326,5.0090728,599.22,598.0,0.26730187]
[1740994274327,1.66969093,599.2,598.0,0.26730187]
[1740994274528,1.66969093,599.19,598.0,0.26730187]
[1740994274730,1.66969093,599.18,598.0,0.26730187]
[1740994274925,1.66969093,599.17,598.0,0.26730187]
[1740994275229,1.66969093,599.16,598.0,0.26730187]
[1740994275428,1.66969093,599.15,598.0,0.26730187]
[1740994275728,1.66969093,599.14,598.0,0.26730187]
[1740994275927,1.66969093,599.13,598.0,0.26730187]
[1740994276127,1.66969093,599.12,598.0,0.26730187]
[1740994276326,1.66969093,599.11,598.0,0.26730187]
[1740994276528,1.66969093,599.1,598.0,0.26730187]
[1740994276727,1.66969093,599.09,598.0,0.26730187]
[1740994276922,1.66969093,599.08,598.0,0.26730187]
[1740994277228,1.66969093,599.07,598.0,0.26730187]
[1740994277429,1.66969093,599.06,598.0,0.26730187]
[1740994277628,1.66969093,599.05,598.0,0.26730187]
[1740994277826,1.66969093,599.04,597.99,0.33445375]
[1740994278027,1.66969093,599.03,598.0,0.26736551]
[1740994278329,1.66969093,599.02,598.0,0.26736551]
[1740994278523,1.66969093,599.01,598.0,0.26736551]
[1740994278726,1.66969093,599.0,598.0,0.26736551]
[1740994278925,1.66969093,598.99,598.0,0.26736551]
[1740994279127,1.66969093,598.98,598.0,0.26736551]
[1740994279321,1.66969093,598.97,597.99,0.33445375]
[1740994279524,1.66969093,598.96,598.0,0.26739187]
[1740994279723,1.66969093,598.95,598.0,0.26739187]
[1740994279926,1.66969093,598.94,598.0,0.26739187]
[1740994280124,1.66969093,598.93,598.0,0.26739187]
[1740994280325,1.66969093,598.92,598.0,0.26739187]
[1740994280529,4.34119643,598.98,598.0,0.26739187]
[1740994280728,4.34119643,598.97,598.0,0.26739187]
[1740994280930,4.34119643,598.96,598.0,0.26739187]
[1740994281130,4.34119643,598.95,598.0,0.26739187]
[1740994281332,1.67051887,598.94,598.0,0.26739187]
[1740994281529,4.34325967,599.11,598.0,0.26739187]
[1740994281732,1.67051887,599.1,598.0,0.26739187]
[1740994281931,1.67051887,599.11,598.0,0.26739187]
[1740994282336,1.67051887,599.11,598.01,0.33444256]
[1740994282534,4.3425182,599.1,598.02,0.26739187]
[1740994282735,5.01051803,599.09,598.02,0.26739187]
[1740994282934,5.01051803,599.08,598.02,0.26739187]
[1740994283135,4.3425182,599.07,598.02,0.26739187]
[1740994283435,4.3425182,599.06,598.02,0.26739187]
[1740994283636,4.3425182,599.05,598.02,0.26739187]
[1740994283836,4.3425182,599.04,598.02,0.26739187]
[1740994284035,4.3425182,599.03,598.02,0.26739187]
[1740994284235,4.3425182,599.02,598.02,0.26739187]
[1740994284436,1.67051887,599.01,598.02,0.26739187]
[1740994284636,1.67051887,599.0,598.02,0.26739187]
[1740994284830,1.67051887,598.99,598.02,0.26739187]
[1740994285035,1.67051887,598.98,598.02,0.26739187]
[1740994285232,2.6718989,599.08,598.02,0.26739187]
[1740994285436,1.74393839,599.04,598.02,0.60182884]
[1740994285636,4.34183057,599.03,598.03,0.26739187]
[1740994285836,1.74393839,599.04,598.03,0.26739187]
[1740994285837,4.34183057,599.02,598.03,0.26739187]
[1740994286034,4.34183057,599.01,598.03,0.26739187]
[1740994286235,4.34183057,599.0,598.03,0.26739187]
[1740994286433,4.34183057,598.99,598.03,0.26739187]
[1740994286637,1.66993167,598.98,598.03,0.26739187]
[1740994286833,1.66993167,598.97,598.03,0.26739187]
[1740994287039,1.66993167,598.96,598.03,0.26739187]
[1740994287234,1.74393839,599.04,598.03,0.26739187]
[1740994287438,1.66998184,599.03,598.03,0.26739187]
[1740994287640,1.66998184,599.02,598.03,0.26739187]
[1740994287939,1.66998184,599.01,598.03,0.26739187]
[1740994288137,1.66998184,599.0,598.03,0.26739187]
[1740994288337,1.66998184,598.99,598.03,0.26739187]
[1740994288537,1.66998184,598.98,598.03,0.26739187]
[1740994288735,1.66998184,598.97,598.03,0.26739187]
[1740994288936,1.66998184,598.96,598.03,0.26739187]
[1740994289134,1.66998184,598.95,598.03,0.26739187]
[1740994289339,1.74404036,599.0,598.03,0.26739187]
[1740994289540,4.3420624,598.99,598.03,0.26739187]
[1740994289740,4.3420624,598.98,598.03,0.26739187]
[1740994289945,4.3420624,598.97,598.03,0.26739187]
[1740994290240,1.74404036,599.0,598.03,0.26739187]
[1740994290241,4.3420624,598.96,598.03,0.26739187]
[1740994290443,4.3420624,598.95,598.03,0.26739187]
[1740994290642,4.3420624,598.94,598.03,0.26739187]
[1740994290837,4.3420624,598.93,598.03,0.26739187]
[1740994291140,1.67009145,598.92,598.03,0.26739187]
[1740994291341,1.67009145,598.91,598.03,0.26739187]
[1740994291643,1.67009145,598.9,598.03,0.26739187]
[1740994291845,1.67009145,598.89,598.02,0.33443697]
[1740994292044,1.67009145,598.88,598.02,0.33443697]
[1740994292243,1.67009145,598.87,598.03,0.26734781]
[1740994292444,1.67009145,598.86,598.03,0.26734781]
[1740994292647,1.67009145,598.85,598.03,0.26734781]
[1740994292839,1.74409863,598.92,598.03,0.26734781]
[1740994293042,1.67026628,598.91,598.03,0.26734781]
[1740994293242,1.67026628,598.9,598.03,0.26734781]
[1740994293441,1.67018927,598.89,598.03,0.26734781]
[1740994293639,1.67018927,598.88,598.04,0.26731964]
[1740994293843,1.74409863,598.92,598.02,0.33443697]
[1740994293844,1.67018927,598.87,598.05,0.26731964]
[1740994294043,1.74409863,598.92,598.06,0.26731964]
[1740994294240,1.67019828,598.91,598.07,0.26731964]
[1740994294441,1.67019828,598.9,598.03,0.26731964]
[1740994294644,1.67019828,598.89,598.04,0.26731964]
[1740994294942,1.67019828,598.88,598.05,0.26733476]
[1740994295145,1.67019828,598.87,598.03,0.26733476]
[1740994295345,1.74412048,598.91,598.04,0.26733476]
[1740994295547,1.67029145,598.9,598.03,0.26733476]
[1740994295750,1.67029145,598.89,598.04,0.26733476]
[1740994295948,1.67029145,598.88,598.03,0.26733476]
[1740994296248,1.74412048,598.91,598.04,0.26733476]
[1740994296444,1.74412048,598.91,598.03,0.26733476]
[1740994296647,1.67005953,599.12,598.04,0.26733476]
[1740994296949,1.7438947,599.07,598.05,0.60175495]